[Event "3rd Sharjah Challengers 2023"]
[Site "Sharjah"]
[Date "2023.05.20"]
[Round "4.9"]
[White "Hesham, Abdelrahman"]
[Black "Saeed, Ishaq"]
[Result "1-0"]
[ECO "D47"]
[WhiteElo "2409"]
[BlackElo "2303"]
[Annotator "TA"]
[PlyCount "105"]
[EventDate "2023.05.16"]
[EventType "swiss"]
[EventCountry "UAE"]
[SourceTitle "playchess.com"]
[Source "ChessBase"]
[SourceQuality "1"]
[TimeControl "5400+30"]

{[%evp 24,105,0,6,0,2,33,32,54,0,93,73,58,56,87,86,81,79,73,78,68,76,84,90,93,15,35,43,422,419,414,423,404,391,412,402,405,371,745,727,720,686,823,815,815,770,29980,29981,29981,29982,29982,29980,29983,29984,29984,29985,29985,29985,29985,29986,29986,29986,29986,29987,29987,29988,29988,29989,29989,29987,29987,29987,29987,29988,29988,29989,29992,29990,29990,29989,29993,29994,29994,29995]} 1. d4 {[%emt 0:00:02]} d5 {[%emt 0:01:58]} 2. c4 {[%emt 0:00:07]} c6 {[%emt 0:00:18]} 3. Nc3 {[%emt 0:00:05]} Nf6 {[%emt 0:00:08]} 4. e3 {[%emt 0:00:05][%cal Be2e3,Be3e4,Be4e5][%mdl 32]} e6 {[%emt 0:00:14]} 5. Nf3 {[%emt 0:00:06]} Nbd7 {[%emt 0:00:07]} 6. Bd3 {[%emt 0:00:05]} dxc4 {[%emt 0:00:20]} 7. Bxc4 {[%emt 0:00:05]} b5 {[%emt 0:00:07]} 8. Bd3 {[%emt 0:00:05]} Bb7 {[%emt 0:00:38]} 9. e4 {[%emt 0:02:33]} b4 {[%emt 0:00:42]} 10. Na4 {[%emt 0:00:05]} c5 {[%emt 0:00:54]} 11. e5 {[%emt 0:00:02]} Nd5 {[%emt 0:01:08]} 12. O-O {[%emt 0:00:05]} cxd4 {[%emt 0:01:27]} 13. Nxd4 $1 {[%emt 0:00:56][%mdl 4] is recently more successful than 13.Re1.} Be7 {[%emt 0:12:23] D47: Semi-Slav: Meran System.} 14. Re1 {[%emt 0:09:19]} Qa5 {[%emt 0:12:53]} (14... O-O {is interesting.} 15. Qg4 Re8 16. Bh6 Bf8) 15. Bb5 {[%emt 0:05:01] [#]} a6 $146 {[%emt 0:04:07] White is slightly better.} ({Predecessor:} 15... Rd8 16. Qg4 Kf8 17. Bg5 Bxg5 18. Qxg5 h6 19. Qg4 Nc7 20. Bxd7 Rxd7 21. b3 h5 {1-0 Ipek,E (2308)-Akbas,U (2417) Ayvalik Iris 2023 (7)}) 16. Bc6 {[%emt 0:00:28]} (16. Bxd7+ $1 $14 Kxd7 17. b3) 16... Qc7 {[%emt 0:21:27]} (16... Bxc6 $1 $11 17. Nxc6 Qb5) 17. Bxb7 {[%emt 0:00:35]} Qxb7 {[%emt 0:00:01]} 18. Qg4 $1 {[%emt 0:00:24]} Nf8 {[%emt 0:00:44]} 19. h4 $1 {[%emt 0:20:49] White is more active.} Qd7 {[%emt 0:09:06] [#]} 20. h5 $1 {[%emt 0:10:56]} g6 {[%emt 0:00:08]} (20... Qxa4 $2 21. Qxg7 b3 22. Nxb3 $18) 21. b3 {[%emt 0:05:06]} gxh5 {[%emt 0:00:46]} 22. Qxh5 {[%emt 0:00:18]} Ng6 {[%emt 0:03:08]} 23. Bh6 {[%emt 0:06:42]} Rg8 {[%emt 0:01:59] Prevents Bg7.} 24. Rad1 {[%emt 0:10:16]} (24. g3 $1 $16) 24... Qb7 {[%emt 0:10:27] And now ...Ngf4 would win.} (24... Ngf4 {keeps more tension.} 25. Bxf4 Nxf4 26. Qf3 Qd5) 25. Qg4 {[%emt 0:11:25][%cal Od4e6] Prevents Ngf4. Hoping for Nxe6!} O-O-O $2 {[%emt 0:15:57][%mdl 8192] [#] Black cannot hold the game after this.} (25... Nc3 $1 $14) 26. Nxe6 $1 $18 {[%emt 0:01:45][%mdl 576] Remove Defender} fxe6 {[%emt 0:01:34] [#]} 27. Rxd5 $1 {[%emt 0:00:15][%mdl 576] Pin} Kb8 {[%emt 0:00:48]} 28. Rxd8+ {[%emt 0:00:33]} Rxd8 {[%emt 0:00:29]} 29. Qxe6 {[%emt 0:00:42]} Nh4 {[%emt 0:00:20][%csl Gh4][%cal Rb7g2]} 30. f3 {[%emt 0:08:56] Rc1 is the strong threat.} Nxf3+ $2 {[%emt 0:00:39]} (30... Qd7 31. Qxd7 Rxd7) 31. gxf3 {[%emt 0:00:19]} Qxf3 {[%emt 0:00:08]} 32. Qb6+ {[%emt 0:00:19]} (32. Qxe7 Rg8+ 33. Bg7 Qg3+ 34. Kf1 Qf3+ 35. Kg1 Qg3+ 36. Kf1 Qf3+ 37. Kg1 $11) 32... Ka8 {[%emt 0:00:02] ( -> ...Rg8+)} 33. Qxa6+ {[%emt 0:00:06]} Kb8 {[%emt 0:00:01]} 34. Qb5+ {[%emt 0:00:08]} Ka8 {[%emt 0:00:10] [#]} 35. Nb6+ $1 {[%emt 0:00:09] White mates.} Ka7 {[%emt 0:00:21] [#]} 36. Nc8+ $1 {[%emt 0:00:07]} Rxc8 {[%emt 0:00:55]} 37. Be3+ {[%emt 0:00:05]} (37. Qd7+ Kb8 38. Qxe7 Rg8+ 39. Bg7 Qg3+ 40. Kf1 Qf3+ 41. Kg1 Qg3+ 42. Kf1 Qf3+ 43. Kg1 $11) 37... Rc5 {[%emt 0:01:46]} 38. Bxc5+ {[%emt 0:00:28]} Bxc5+ {[%emt 0:00:36]} 39. Qxc5+ {[%emt 0:00:04]} Ka6 {[%emt 0:00:18]} 40. Qd6+ {[%emt 0:01:49]} ({Stronger than} 40. Qxb4 Qg3+ 41. Kf1 Qf3+ 42. Kg1 Qg3+ 43. Kh1 Qh3+ 44. Kg1 Qg3+ $11) 40... Ka5 {[%emt 0:00:22]} 41. Qd8+ {[%emt 0:01:31]} Kb5 {[%emt 0:00:22]} 42. Qg5 {[%emt 0:00:41]} h6 {[%emt 0:00:18]} 43. Qg2 {[%emt 0:00:06]} (43. Qxh6 Qg3+ 44. Kh1 (44. Kf1 Qf3+ 45. Kg1 Qg3+ 46. Kh1 Qxe1+ 47. Kh2 Qxe5+ 48. Kh3 Qf5+ 49. Kg3 Qd3+ 50. Kg4 Qd4+ 51. Kf3 Qd5+ 52. Kf2 Qf5+ 53. Ke2 Qg4+ 54. Kf2 Qf5+ 55. Kg3 Qd3+ 56. Kh4 Qe4+ 57. Kg3 Qd3+ $11) 44... Qxe1+ 45. Kh2 Qxe5+ 46. Kh3 Qf5+ 47. Kh4 Qf2+ 48. Kg4 Qe2+ 49. Kg3 Qxa2 $11) 43... Qc3 {[%emt 0:00:25]} 44. Qe2+ {[%emt 0:01:07]} Ka5 {[%emt 0:00:05]} 45. Qe3 {[%emt 0:00:05]} Qc2 {[%emt 0:00:27]} 46. e6 {[%emt 0:03:09]} Qg6+ {[%emt 0:00:12]} 47. Kh2 {[%emt 0:00:09]} Qh5+ {[%emt 0:00:20]} 48. Qh3 {[%emt 0:00:06]} Qd5 {[%emt 0:00:20]} 49. Re2 {[%emt 0:01:41]} Qd1 {[%emt 0:00:50]} 50. Qf3 {[%emt 0:00:23]} Qd6+ {[%emt 0:00:12]} 51. Qg3 {[%emt 0:00:28]} Qd1 {[%emt 0:00:12]} 52. Qe5+ {[%emt 0:00:19]} Ka6 {[%emt 0:00:10]} 53. e7 {[%emt 0:00:12] Excellently played by Hesham!   Weighted Error Value: White=0.07 (flawless) /Black=0.50} 1-0

[Event "3rd Sharjah Challengers 2023"]
[Site "Sharjah"]
[Date "2023.05.21"]
[Round "5.1"]
[White "Ohanyan, Emin"]
[Black "Sivuk, Vitaly"]
[Result "1/2-1/2"]
[ECO "D66"]
[WhiteElo "2444"]
[BlackElo "2489"]
[Annotator "TA"]
[PlyCount "88"]
[EventDate "2023.05.16"]
[EventType "swiss"]
[EventCountry "UAE"]
[SourceTitle "playchess.com"]
[Source "ChessBase"]
[SourceQuality "1"]
[TimeControl "5400+30"]

{[%evp 23,88,15,21,0,0,-13,-6,-42,0,-25,88,87,146,48,66,18,83,91,93,42,52,-58,-63,-52,-62,-62,24,13,52,27,159,148,422,241,226,-8,-8,-8,-8,-8,-8,-8,-8,-8,-10,-45,-8,-140,-115,-98,-14,-30,-14,-35,-8,-8,-8,-9,-18,-34,0,0,0,0,0,0,0]} 1. d4 {[%emt 1:31:00]} Nf6 {[%emt 1:31:00]} 2. c4 {[%emt 0:00:30]} e6 {[%emt 0:00:30]} 3. Nf3 {[%emt 0:00:30]} d5 {[%emt 0:00:30]} 4. Nc3 {[%emt 0:00:30]} c6 {[%emt 0:00:30]} 5. Bg5 {[%emt 0:00:30]} Nbd7 {[%emt 0:00:30]} 6. e3 {[%emt 0:00:30]} Be7 {[%emt 0:00:30]} 7. Bd3 {[%emt 0:00:30]} O-O {[%emt 0:00:30]} 8. O-O {[%emt 0:00:30]} h6 {[%emt 0:00:30]} 9. Bh4 {[%emt 0:00:30]} dxc4 {[%emt 0:00:30]} 10. Bxc4 {[%emt 0:00:30]} b5 {[%emt 0:00:30]} 11. Bd3 {[%emt 0:00:30]} Bb7 $1 {[%emt 0:00:30] 11...Bb7 is better than 11...a6.} 12. Rc1 {[%emt 0:00:30]} Rc8 {[%emt 0:00:30]} 13. Bb1 {[%emt 0:00:30] D66: Queen's Gambit Declined: Classical: Main Line (7 Rc1 c6 8 Bd3).} b4 {[%emt 0:00:30]} 14. Na4 {[%emt 0:00:30]} c5 {[%emt 0:00:30]} 15. Bxf6 {[%emt 0:00:30] [#]} gxf6 $146 {[%emt 0:00:30]} ({Predecessor:} 15... Nxf6 16. Nxc5 Bxc5 17. dxc5 Qa5 18. Nd4 Rxc5 19. Nb3 Rxc1 20. Nxa5 Rxd1 21. Rxd1 Ba8 {½-½ Hebden,M (2460)-Motwani,P (2455) BCF-ch Blackpool 1988}) 16. e4 {[%emt 0:00:30]} Qa5 {[%emt 0:00:30]} (16... Ba6 $11 17. Re1 cxd4) 17. d5 $1 $16 {[%emt 0:00:30]} Rfd8 {[%emt 0:00:30] [#]} (17... Ne5 $142) 18. b3 {[%emt 0:00:30]} (18. Nh4 $1 $16 c4 19. Qg4+ Kf8 20. dxe6 fxe6 21. Ng6+ Kf7 22. Nf4 (22. Nxe7 Ne5 $14)) 18... Qc7 $14 {[%emt 0:00:30]} 19. Nh4 {[%emt 0:00:30]} (19. Nd2 $14 {should be considered.}) 19... Qf4 {[%emt 0:00:30]} (19... f5 $1 $11 20. dxe6 {[%mdl 64] Discovered Attack} fxe6) 20. g3 $16 {[%emt 0:00:30]} Qg5 {[%emt 0:00:30]} 21. f4 {[%emt 0:00:30]} (21. Qe2 $16) 21... Qg7 $14 {[%emt 0:00:30][%cal Of6f5]} 22. Qh5 {[%emt 0:00:30] [#] Inhibits f5.} ({Better is} 22. dxe6 $1 $14 fxe6 23. Qe2) 22... f5 $1 $15 {[%emt 0:00:30] Hoping for ...Nf6.} 23. dxe6 $1 {[%emt 0:00:30]} fxe6 {[%emt 0:00:30]} 24. Ng6 {[%emt 0:00:30] aiming for Nxe7+.} Bd6 {[%emt 0:00:30]} (24... Bxe4 $2 25. Nxe7+ Qxe7 26. Bxe4 (26. Qxh6 Bxb1 27. Rxb1 Nf6 $11) 26... fxe4 27. Qg6+ (27. Qxh6 Qf6 $16) 27... Qg7 28. Qxe6+ Kh8 29. Qxe4 $18) (24... Bf6 $1 $15 25. e5 (25. exf5 $2 Bd4+ 26. Rf2 exf5 $19) 25... Kh7) 25. e5 $36 {[%emt 0:00:30][%mdl 2048] White has the initiative.} Kh7 {[%emt 0:00:30]} 26. Rfd1 {[%emt 0:00:30]} (26. Nh4 $5 {[%cal Re5d6]} Bc7 27. Rfd1 $16 (27. Nxc5 $2 Nxc5 28. Rfd1 Bb6 $19)) 26... Bb8 {[%emt 0:00:30] [#]} (26... Nf6 $1 $11 {remains equal.} 27. Qe2 (27. exf6 Qxg6 28. Qe2 Qxf6 $17) 27... Qxg6 28. Rxd6 Rxd6 29. exd6 Qe8) 27. Nh4 $1 $16 {[%emt 0:00:30] White is much more active.} Nxe5 $2 {[%emt 0:00:30][%mdl 8192]} (27... Bc7 $16 {was necessary.} 28. Bd3 (28. Nxc5 $2 Nxc5 29. Kf1 Rxd1+ 30. Rxd1 Kh8 $19) 28... Kh8) 28. fxe5 {[%emt 0:00:30]} (28. Rxd8 $142 Rxd8 29. Nxc5 (29. fxe5 Bxe5 30. Nxc5 Bxg3 $18)) 28... Bxe5 $18 {[%emt 0:00:30]} 29. Nf3 $2 {[%emt 0:00:30] [#]} ({Worse is} 29. Nxc5 Rxd1+ 30. Rxd1 Bd4+ 31. Rxd4 Qxd4+ 32. Kf1 Rxc5 $11) (29. Kf1 $18 Bd4 30. Nxc5 Bxc5 31. Rxd8 {[%mdl 64] Deflection} Rxd8 32. Rxc5) 29... Bxg3 $1 $11 {[%emt 0:00:30] A strong pair of Bishops.} 30. Ng5+ {[%emt 0:00:30]} Qxg5 {[%emt 0:00:30]} 31. Qxg5 {[%emt 0:00:30] Intending Qe7+ and mate.} Bxh2+ {[%emt 0:00:30]} 32. Kxh2 {[%emt 0:00:30] White wants to mate with Qe7+.} hxg5 {[%emt 0:00:30]} 33. Rxd8 {[%emt 0:00:30]} Rxd8 {[%emt 0:00:30]} 34. Nxc5 {[%emt 0:00:30]} (34. Re1 $5 {[%cal Re1e6]}) 34... Rd2+ {[%emt 0:00:30]} 35. Kg1 {[%emt 0:00:30]} (35. Kh3 $11 Bg2+ 36. Kg3) 35... Bd5 $17 {[%emt 0:00:30]} 36. Bd3 {[%emt 0:00:30]} Rg2+ {[%emt 0:00:30]} ({Black should play} 36... a5 $17 37. Rc2 Rxc2 38. Bxc2 Kg6) 37. Kf1 $11 {[%emt 0:00:30][%cal Oc5e6]} Rxa2 {[%emt 0:00:30] ...Rh2 would be deadly.} 38. Re1 {[%emt 0:00:30]} Kg6 {[%emt 0:00:30] Threatens to win with ...Rh2.} (38... g4 $5 {[%cal Rg4g3]} 39. Nxe6 g3 $15) 39. Nxe6 {[%emt 0:00:30]} Kf6 {[%emt 0:00:30]} 40. Nc7 {[%emt 0:00:30]} Bxb3 {[%emt 0:00:30] White must now prevent ...Rd2.} 41. Rb1 {[%emt 0:00:30]} Bc2 {[%emt 0:00:30]} 42. Nd5+ {[%emt 0:00:30] The position is equal.} Ke5 {[%emt 0:00:30]} 43. Bxc2 {[%emt 0:00:30]} Rxc2 {[%emt 0:00:30]} 44. Nxb4 {[%emt 0:00:30]} Rc4 {[%emt 0:00:30] An exciting game.   Weighted Error Value: White=0.40/Black=0.50} 1/2-1/2

[Event "3rd Sharjah Challengers 2023"]
[Site "Sharjah"]
[Date "2023.05.21"]
[Round "5.2"]
[White "Sibashvili, Giorgi"]
[Black "Nigmatov, Ortik"]
[Result "1/2-1/2"]
[ECO "A01"]
[WhiteElo "2408"]
[BlackElo "2438"]
[Annotator "TA"]
[PlyCount "107"]
[EventDate "2023.05.16"]
[EventType "swiss"]
[EventCountry "UAE"]
[SourceTitle "playchess.com"]
[Source "ChessBase"]
[SourceQuality "1"]
[TimeControl "5400+30"]

{[%evp 9,107,38,53,45,45,45,43,45,49,43,54,3,57,30,49,4,105,115,139,138,152,151,239,69,193,118,141,140,130,114,153,144,143,87,100,89,360,363,353,109,347,171,165,163,256,87,154,8,0,0,23,0,56,56,56,53,35,9,10,13,29,9,43,37,36,30,37,8,8,8,8,8,8,8,8,8,8,8,8,7,8,8,8,7,7,7,8,8,8,7,7,7,14,0,0,0,0,0,0,0]} 1. b3 {[%emt 0:00:04]} e5 {[%emt 0:00:16]} 2. Bb2 {[%emt 0:00:13]} Nc6 {[%emt 0:00:09]} 3. Nf3 {[%emt 0:02:59]} d6 {[%emt 0:03:14]} 4. c4 {[%emt 0:00:35]} f5 {[%emt 0:00:35]} 5. d4 {[%emt 0:06:34]} e4 {[%emt 0:00:58]} 6. d5 {[%emt 0:01:08] A01: Nimzowitsch-Larsen Opening.} exf3 {[%emt 0:01:55]} 7. dxc6 {[%emt 0:00:42]} bxc6 {[%emt 0:00:27]} 8. exf3 {[%emt 0:04:40] White is slightly better.} Nf6 {[%emt 0:03:20]} 9. Bd3 {[%emt 0:03:14] [#]} Qe7+ $146 {[%emt 0:09:52]} ({Predecessor:} 9... Be7 10. O-O O-O 11. Qc2 g6 12. Nc3 Nh5 13. Rfe1 Nf4 14. Bf1 Bf6 15. c5 d5 {1-0 Topalov,A (2260)-Tabak,S (2139) Titled Tuesday intern op 13th Apr blitz 2021 (4)}) 10. Kd2 {[%emt 0:05:19]} (10. Be2 $14) 10... Kf7 {[%emt 0:00:25]} (10... g6 $11) 11. Re1 $36 {[%emt 0:06:25][%mdl 2048] White is more active.} Qd8 {[%emt 0:00:55]} 12. Kc2 {[%emt 0:04:38]} d5 {[%emt 0:01:31]} (12... g6 $1 $11 {keeps the balance.}) 13. Nc3 $16 {[%emt 0:09:09]} d4 {[%emt 0:03:14]} 14. Na4 {[%emt 0:04:16]} c5 {[%emt 0:34:36]} 15. Ba3 {[%emt 0:03:01] White has more active pieces. The black rooks are badly placed.} Qd6 {[%emt 0:00:08]} (15... a5 $16 16. Nxc5 (16. Bxc5 Bxc5 17. Nxc5 Qd6 $11) 16... a4) 16. h3 $2 {[%emt 0:10:22]} (16. Nxc5 Qc6 17. Re5 Bd6 $14) (16. Bxc5 $18 Qd7 17. Bxf8 Rxf8 18. Qd2) 16... Qh2 {[%emt 0:11:11]} (16... Qc6 $14) 17. Rg1 {[%emt 0:01:34]} (17. Bxc5 $6 Bxc5 18. Nxc5 Qxg2 $14) (17. Nxc5 Qxg2 18. Be2 (18. Qe2 Bd6 $11) 18... d3+ 19. Qxd3 Qxf2 $11) (17. Bf1 $1 $18) 17... a5 {[%emt 0:04:40]} 18. Qf1 {[%emt 0:04:29] Hoping for g3.} (18. Bxc5 $6 Bxc5 19. Nxc5 Qd6 $11) (18. Nxc5 g6 $16) 18... Qf4 {[%emt 0:02:22]} 19. Qc1 {[%emt 0:02:31]} (19. Nxc5 $6 Nd7 20. Bc1 Qh4 $14) (19. Bxc5 $6 Bxc5 20. Nxc5 g6 $14) 19... Qh4 {[%emt 0:02:01] [#]} 20. Qd2 {[%emt 0:01:43]} (20. Bxc5 $6 Qxf2+ 21. Qd2 Qxd2+ 22. Kxd2 Bxc5 23. Nxc5 Nd7 24. Nxd7 Bxd7 $11) 20... g6 {[%emt 0:02:19]} 21. Bxc5 {[%emt 0:02:14]} (21. g3 $142 Qh6 22. Qxh6 (22. Bxc5 Qxd2+ 23. Kxd2 Bxc5 $14) 22... Bxh6 23. Bxc5 (23. Nxc5 Bf8 $14)) 21... Bh6 {[%emt 0:00:57]} 22. g3 $1 {[%emt 0:04:54]} Qxh3 $2 {[%emt 0:00:06][%mdl 8192] [#]} (22... Bxd2 $16 {was necessary.} 23. gxh4 Bf4) 23. Qd1 $1 $18 {[%emt 0:00:35]} Bg7 {[%emt 0:00:59]} 24. Bxd4 $2 {[%emt 0:07:41]} (24. Re1 $18 {and the rest is easy.} Rd8 25. Re7+ (25. Qe2 Re8 $16) 25... Kg8 26. Qe2 (26. Rxc7 Qg2 $16)) 24... Bb7 $2 {[%emt 0:00:57]} (24... Rd8 $16 {was worth a try.} 25. Bc3 (25. Rh1 Qg2 $16) 25... f4) 25. Nc5 {[%emt 0:01:15]} (25. c5 $142 f4 26. Bc4+ (26. gxf4 Bxf3 27. Qd2 Be4 $14) 26... Bd5 27. Bxf6 (27. gxf4 $2 Bxc4 28. bxc4 Rhd8 $19) (27. Bxd5+ Nxd5 28. Bxg7 Qf5+ 29. Kb2 Kxg7 $16) 27... Bxc4 28. Bxg7 (28. bxc4 Qf5+ 29. Qd3 Qxd3+ 30. Kxd3 Bxf6 $15)) 25... Bc6 {[%emt 0:00:12]} 26. Qd2 {[%emt 0:03:15][%cal Og3g4]} Rad8 {[%emt 0:02:49]} (26... Rhe8 $142) 27. Be5 $2 {[%emt 0:01:36]} (27. Qe3 Rhe8 28. Qf4 Rxd4 29. Qxd4 Nd7 $17) (27. Bxf6 $18 Bxf6 28. Qxa5) 27... Bxf3 {[%emt 0:02:34]} (27... Rhe8 $142 28. Rae1 (28. Bxc7 Rc8 $16) 28... Bxf3) 28. Qf4 {[%emt 0:01:49] The board is on fire.} ({Don't take} 28. Bxc7 Ne4 29. Qe3 (29. Qxa5 Qh2 $11) 29... Qg4 30. Bxd8 Rxd8 $16) (28. Bxf6 $16 Bxf6 29. Qf4) 28... Qg4 $11 {[%emt 0:02:42]} 29. Qxg4 {[%emt 0:03:50]} fxg4 {[%emt 0:00:17]} 30. Rae1 {[%emt 0:00:33]} (30. Rge1 $5 {[%cal Re5c7]}) 30... Nd7 {[%emt 0:02:30]} ({Better is} 30... Bf8 $1 $11 31. Na6 (31. Bxc7 $2 {too greedy.} Bxc5 32. Bxd8 Rxd8 $19) 31... c6) 31. Bxg7 $14 {[%emt 0:01:55]} (31. Bxc7 $2 {loses.} Nxc5 32. Bxd8 Rxd8 $19) 31... Nxc5 {[%emt 0:00:05]} 32. Bxh8 {[%emt 0:00:17]} Nxd3 {[%emt 0:00:04]} 33. Bc3 {[%emt 0:00:10] aiming for Re3.} (33. Be5 $5 {[%cal Re1e3]}) 33... Nxe1+ {[%emt 0:00:05]} 34. Rxe1 $11 {[%emt 0:00:03][%mdl 4096] Endgame KRB-KRB} a4 {[%emt 0:01:18]} 35. bxa4 {[%emt 0:00:06]} (35. Bb4 $5 {[%cal Re1e7]}) 35... Re8 {[%emt 0:00:06]} 36. Re5 {[%emt 0:00:41]} Rxe5 {[%emt 0:01:31]} 37. Bxe5 $14 {[%emt 0:00:02] KB-KB} c5 {[%emt 0:00:58]} 38. Bd6 {[%emt 0:00:39]} g5 {[%emt 0:00:57] The position is equal.} 39. Kd3 {[%emt 0:00:42]} h5 {[%emt 0:00:29]} 40. Bxc5 {[%emt 0:00:20]} h4 {[%emt 0:00:06]} 41. gxh4 {[%emt 0:00:05]} gxh4 {[%emt 0:00:03]} 42. Bd6 {[%emt 0:01:03]} Ke6 {[%emt 0:00:15]} 43. Bb8 {[%emt 0:00:33]} Kd7 {[%emt 0:00:19]} 44. Kd4 {[%emt 0:01:39]} Kc8 {[%emt 0:00:14]} 45. Bf4 {[%emt 0:00:15]} Kb7 {[%emt 0:00:05]} 46. Kc5 {[%emt 0:00:48]} Ka6 {[%emt 0:01:50]} 47. Bc7 {[%emt 0:02:46]} Kb7 {[%emt 0:00:53]} 48. Be5 {[%emt 0:00:24]} Ka6 {[%emt 0:00:04]} 49. Kb4 {[%emt 0:00:33]} Bc6 {[%emt 0:00:54]} 50. a5 {[%emt 0:00:21]} Bf3 {[%emt 0:00:08]} 51. Kc5 {[%emt 0:00:41]} Kxa5 {[%emt 0:00:12]} 52. Kd6 {[%emt 0:00:29]} Kb4 {[%emt 0:00:19]} 53. c5 {[%emt 0:00:05]} Ka3 {[%emt 0:00:52]} 54. c6 {[%emt 0:00:15] White really could win this.   Weighted Error Value: White=0.36/Black=0.31} 1/2-1/2

[Event "3rd Sharjah Challengers 2023"]
[Site "Sharjah"]
[Date "2023.05.21"]
[Round "5.3"]
[White "Fawzy, Adham"]
[Black "Al Qudaimi, Basheer"]
[Result "1-0"]
[ECO "C73"]
[WhiteElo "2495"]
[BlackElo "2401"]
[Annotator "TA"]
[PlyCount "71"]
[EventDate "2023.05.16"]
[EventType "swiss"]
[EventCountry "UAE"]
[SourceTitle "playchess.com"]
[Source "ChessBase"]
[SourceQuality "1"]
[TimeControl "5400+30"]

{[%evp 11,71,11,25,39,31,0,4,0,4,10,73,57,78,79,75,64,71,76,74,75,77,63,86,83,76,26,22,21,27,0,18,17,0,20,75,62,39,0,0,0,29,22,0,40,201,195,188,156,193,203,1820,1781,1345,1043,930,918,29991,29992,29992,29989,29989,29990]} 1. e4 {[%emt 0:00:04]} e5 {[%emt 0:00:11]} 2. Nf3 {[%emt 0:00:09]} Nc6 {[%emt 0:00:16]} 3. Bb5 {[%emt 0:00:06]} a6 {[%emt 0:00:28]} 4. Ba4 {[%emt 0:00:03]} d6 {[%emt 0:01:06][%cal Bd7d6,Bd6d5][%mdl 32]} 5. Bxc6+ {[%emt 0:02:50]} bxc6 {[%emt 0:01:02]} 6. d4 {[%emt 0:00:42]} Nf6 {[%emt 0:05:40]} 7. O-O {[%emt 0:03:13] C73: Ruy Lopez: Deferred Steinitz: 5 Bxc6+.} Be7 {[%emt 0:03:53]} 8. dxe5 {[%emt 0:09:45]} Nxe4 {[%emt 0:01:10]} 9. Re1 {[%emt 0:02:10] The position is equal.} d5 {[%emt 0:14:05]} 10. Nd4 {[%emt 0:01:08]} Bc5 {[%emt 0:05:57]} (10... Bd7 $11) 11. Be3 $1 $16 {[%emt 0:10:01]} Bxd4 {[%emt 0:07:25]} 12. Qxd4 {[%emt 0:01:09] [#]} O-O $146 {[%emt 0:04:45]} ({Predecessor:} 12... c5 13. Qa4+ Bd7 14. Qa5 d4 15. Bf4 Bc6 16. f3 g5 17. Bc1 f5 18. fxe4 Bxe4 19. Qxc5 {1-0 Shivdasani,V (2149)-Bas,U (1791) Afroasian-ch13 prel email 2010}) 13. f3 {[%emt 0:03:01]} Ng5 {[%emt 0:00:32] [#] Black is weak on the dark squares} 14. Bxg5 $1 {[%emt 0:00:46]} Qxg5 {[%emt 0:00:03]} 15. Nc3 {[%emt 0:01:38]} Bf5 {[%emt 0:04:23]} 16. Re2 {[%emt 0:00:42]} Rfe8 {[%emt 0:03:51]} 17. Rae1 {[%emt 0:01:12]} Qg6 {[%emt 0:00:49]} 18. Na4 {[%emt 0:04:05]} (18. Qd2 $16) 18... Bxc2 $11 {[%emt 0:02:30]} 19. Nc5 {[%emt 0:00:10]} Bf5 {[%emt 0:01:44]} 20. g4 {[%emt 0:02:15]} (20. Qc3 $5) 20... h5 {[%emt 0:03:41][%cal Rh5g4]} 21. h3 {[%emt 0:00:17]} Bc8 {[%emt 0:06:34]} 22. Rg2 {[%emt 0:02:04]} hxg4 {[%emt 0:03:40]} (22... Qh6 $11 {keeps the balance.}) 23. hxg4 $16 {[%emt 0:00:36]} Rb8 {[%emt 0:10:04]} 24. f4 {[%emt 0:05:53][%cal Bf3f4,Bf4f5,Bf5f6][%mdl 32]} a5 {[%emt 0:02:21]} (24... Bxg4 25. Nxa6 (25. f5 Qxf5 26. Rxg4 Rxb2 $11) 25... c5 26. Nxc5 $14) 25. a3 {[%emt 0:00:40] Inhibits Rb4.} Rb5 {[%emt 0:01:34]} (25... Bxg4 $5 26. f5 Qxf5 27. Rxg4 (27. e6 fxe6 28. Nd7 Rbd8 $11) 27... Rxb2 $11) 26. b4 {[%emt 0:03:40]} (26. f5 $5 Qg5 $8 27. Re3 $11) 26... axb4 {[%emt 0:00:25]} (26... Bxg4 27. f5 Qxf5 28. Rxg4 $18 (28. Qxg4 Qxg4 29. Rxg4 f6 $16)) 27. axb4 {[%emt 0:00:01]} Kf8 $2 {[%emt 0:00:09] This costs Black the game.} ({Weaker is} 27... Bxg4 28. f5 Qxf5 29. Rxg4 $18) (27... Rb6 $14) 28. Rf1 {[%emt 0:02:46][%mdl 1024] White has strong compensation.} Ke7 {[%emt 0:03:35]} (28... Bxg4 $2 29. f5 Qh6 30. Rxg4 $18) 29. f5 {[%emt 0:06:12]} Qg5 {[%emt 0:01:01] [#]} 30. Rh2 {[%emt 0:00:34] Against Rh8. aiming for Rh5.} g6 {[%emt 0:08:26] [#] Dodges Rh5} (30... Kd8 31. Rh7 Rg8) 31. e6 $1 $18 {[%emt 0:01:20][%mdl 512] White threatens exf7 and mate.} Qf6 {[%emt 0:02:56] Repels exf7} 32. Qxf6+ {[%emt 0:01:22][%mdl 64] Remove Defender} Kxf6 {[%emt 0:00:01] [#]} 33. g5+ $1 {[%emt 0:00:01][%mdl 512]} Kg7 {[%emt 0:01:05]} (33... Ke7 34. Rh7) 34. f6+ {[%emt 0:00:25] White mates.} Kg8 {[%emt 0:00:05]} 35. exf7+ {[%emt 0:00:13][%mdl 64] Deflection} Kxf7 {[%emt 0:00:02]} 36. Rh7+ {[%emt 0:00:02][%mdl 64] Skewer.   Weighted Error Value: White=0.08 (flawless) /Black=0.39} 1-0